fUST/lending_fUST_20240518
["ID","MTS","AMOUNT","RATE_DAILY","PERIOD"]
[327360583,1716017460059,-4713.77,0.0002,2]
[327360584,1716017460070,-500.0,0.0002,2]
[327360585,1716017460081,-500.0,0.0002,2]
[327360586,1716017460092,-811.0,0.0002,2]
[327360587,1716017460104,-600.0,0.0002,2]
[327360588,1716017460115,-512.07,0.0002,2]
[327360589,1716017460126,-25178.98,0.0002,2]
[327360590,1716017460137,-1949.54,0.0002,2]
[327360591,1716017460148,-732.46,0.0002,2]
[327360592,1716017460160,-600.0,0.000202,2]
[327360593,1716017460171,-2381.26,0.00020273,2]
[327360594,1716017460181,-1061.9,0.00020273,2]
[327360595,1716017460192,-500.0,0.00020273,2]
[327360596,1716017460202,-2463.57,0.00020273,2]
[327360597,1716017460213,-500.0,0.00020273,2]
[327360598,1716017460225,-3548.83,0.00020273,2]
[327360599,1716017460236,-934.55,0.00020273,2]
[327360600,1716017460248,-1925.6,0.00020273,2]
[327360601,1716017460259,-4540.69,0.00020273,2]
[327360602,1716017460270,-525.88,0.00020273,2]
[327360603,1716017460281,-500.0,0.00020273,2]
[327360604,1716017460292,-3284.2,0.00020273,2]
[327360605,1716017460303,-905.75,0.00020273,2]
[327360606,1716017460314,-4713.77,0.00020273,2]
[327360607,1716017460325,-500.0,0.00020273,2]
[327360608,1716017460336,-500.0,0.00020273,2]
[327360609,1716017460347,-512.07,0.00020273,2]
[327360610,1716017460358,-25178.98,0.00020273,2]
[327360611,1716017460369,-1949.54,0.00020273,2]
[327360612,1716017460381,-732.46,0.00020273,2]
[327360613,1716017460392,-392.19192532,0.000203,2]
[327360614,1716017460404,-600.0,0.000204,2]
[327360615,1716017460415,-2309.25768748,0.000205,5]
[327360616,1716017460426,-2381.26,0.00020547,2]
[327360617,1716017460438,-1061.9,0.00020547,2]
[327360618,1716017460450,-500.0,0.00020547,2]
[327360619,1716017460462,-2463.57,0.00020547,2]
[327360620,1716017460475,-500.0,0.00020547,2]
[327360621,1716017460485,-3548.83,0.00020547,2]
[327360622,1716017460496,-934.55,0.00020547,2]
[327360623,1716017460507,-1925.6,0.00020547,2]
[327360624,1716017460518,-4540.69,0.00020547,2]
[327360625,1716017460530,-525.88,0.00020547,2]
[327360626,1716017460541,-500.0,0.00020547,2]
[327360627,1716017460553,-3284.2,0.00020547,2]
[327360628,1716017460564,-905.75,0.00020547,2]
[327360629,1716017460575,-4713.77,0.00020547,2]
[327360630,1716017460586,-500.0,0.00020547,2]
[327360631,1716017460597,-500.0,0.00020547,2]
[327360632,1716017460608,-512.07,0.00020547,2]
[327360633,1716017460748,-25178.98,0.00020547,2]
[327360634,1716017460759,-1949.54,0.00020547,2]
[327360635,1716017460769,-732.46,0.00020547,2]
[327360636,1716017460779,-692.262684,0.00020548,2]
[327360637,1716017460789,-600.0,0.000206,2]
[327360638,1716017460798,-582.3798952,0.00020603,2]
[327360639,1716017460807,-582.49968655,0.0002066,7]
[327360640,1716017460817,-153.0,0.0002074,2]
[327360641,1716017460826,-600.0,0.000208,2]
[327360642,1716017460835,-2381.26,0.00020821,2]
[327360643,1716017460845,-1061.9,0.00020821,2]
[327360644,1716017460854,-500.0,0.00020821,2]
[327360645,1716017460864,-2463.57,0.00020821,2]
[327360646,1716017460873,-500.0,0.00020821,2]
[327360647,1716017460883,-3548.83,0.00020821,2]
[327360648,1716017460892,-934.55,0.00020821,2]
[327360649,1716017460902,-1925.6,0.00020821,2]
[327360650,1716017460911,-4540.69,0.00020821,2]
[327360651,1716017460920,-525.88,0.00020821,2]
[327360652,1716017460930,-500.0,0.00020821,2]
[327360653,1716017460939,-3284.2,0.00020821,2]
[327360654,1716017460948,-905.75,0.00020821,2]
[327360655,1716017460957,-4713.77,0.00020821,2]
[327360656,1716017460967,-500.0,0.00020821,2]
[327360657,1716017460978,-500.0,0.00020821,2]
[327360658,1716017460988,-512.07,0.00020821,2]
[327360659,1716017460997,-25178.98,0.00020821,2]
[327360660,1716017461007,-1949.54,0.00020821,2]
[327360661,1716017461016,-732.46,0.00020821,2]
[327360662,1716017461025,-620.00000429,0.00020911,2]
[327360663,1716017461035,-1000.0,0.00020958,2]
[327360664,1716017461044,-237.2227673,0.00021,2]
[327360665,1716017461054,-9322.92256472,0.00021,5]
[327360666,1716017461063,-197.76226326,0.00021,2]
[327360667,1716017461072,-10036.57100687,0.00021,2]
[327360668,1716017461081,-2500.0,0.00021,2]
[327360669,1716017461091,-39641.75517382,0.00021,2]
[327360670,1716017461100,-2875.53159631,0.00021,2]
[327360671,1716017461109,-280.0,0.00021,2]
[327360672,1716017461119,-600.0,0.00021,2]
[327360673,1716017461128,-2381.26,0.00021095,2]
[327360674,1716017461137,-1061.9,0.00021095,2]
[327360675,1716017461147,-500.0,0.00021095,2]
[327360676,1716017461156,-2463.57,0.00021095,2]
[327360677,1716017461166,-500.0,0.00021095,2]
[327360678,1716017461175,-3548.83,0.00021095,2]
[327360679,1716017461184,-934.55,0.00021095,2]
[327360680,1716017461193,-1925.6,0.00021095,2]
[327360681,1716017461203,-4540.69,0.00021095,2]
[327360682,1716017461212,-525.88,0.00021095,2]
[327360683,1716017461222,-500.0,0.00021095,2]
[327360684,1716017461231,-3284.2,0.00021095,2]
[327360685,1716017461240,-905.75,0.00021095,2]
[327360686,1716017461250,-4713.77,0.00021095,2]
[327360687,1716017461259,-500.0,0.00021095,2]
[327360688,1716017461268,-500.0,0.00021095,2]
[327360689,1716017461278,-512.07,0.00021095,2]
[327360690,1716017461287,-25178.98,0.00021095,2]
[327360691,1716017461297,-1949.54,0.00021095,2]
[327360692,1716017461306,-732.46,0.00021095,2]
[327360693,1716017461316,-1020.05567054,0.000212,2]
[327360694,1716017461326,-2381.26,0.00021369,2]
[327360695,1716017461335,-1061.9,0.00021369,2]
[327360696,1716017461345,-222.86573179,0.00021369,2]
[327360697,1716017461354,-2463.57,0.00021369,2]
[327360698,1716017461363,-500.0,0.00021369,2]
[327360699,1716017461373,-3548.83,0.00021369,2]
[327360700,1716017461382,-934.55,0.00021369,2]
[327360701,1716017461392,-1925.6,0.00021369,2]
[327360702,1716017461401,-4540.69,0.00021369,2]
[327360703,1716017461411,-525.88,0.00021369,2]
[327360704,1716017461421,-500.0,0.00021369,2]
[327360705,1716017461430,-3284.2,0.00021369,2]
[327360706,1716017461440,-905.75,0.00021369,2]
[327360707,1716017461451,-4713.77,0.00021369,2]
[327360708,1716017461460,-500.0,0.00021369,2]
[327360709,1716017461469,-500.0,0.00021369,2]
[327360710,1716017461479,-512.07,0.00021369,2]
[327360711,1716017461488,-25178.98,0.00021369,2]
[327360712,1716017461498,-1949.54,0.00021369,2]
[327360713,1716017461507,-732.46,0.00021369,2]
[327360714,1716017461516,-5600.0,0.000215,6]
[327360715,1716017461526,-1000.00000001,0.000215,2]
[327360716,1716017461535,-3000.0,0.000215,2]
[327360717,1716017461544,-3000.0,0.0002151,2]
[327360718,1716017461553,-3000.0,0.0002152,2]
[327360719,1716017461563,-3000.0,0.0002153,2]
[327360720,1716017461572,-204.3360345,0.00021537,2]
[327360721,1716017461581,-204.3360345,0.00021537,2]
[327360722,1716017461591,-204.3360345,0.00021537,2]
[327360723,1716017461600,-204.3360345,0.00021537,2]
[327360724,1716017461609,-3000.0,0.0002154,2]
[327360725,1716017461618,-3000.0,0.0002155,2]
[327360726,1716017461628,-3000.0,0.0002156,2]
[327360727,1716017461637,-3000.0,0.0002157,2]
[327360728,1716017461647,-3000.0,0.0002158,2]
[327360729,1716017461656,-3000.0,0.0002159,2]
[327360730,1716017461665,-3000.0,0.000216,2]
[327360731,1716017461674,-3000.0,0.0002161,2]
[327360732,1716017461684,-3000.0,0.0002162,2]
[327360733,1716017461696,-3000.0,0.0002163,2]
[327360734,1716017461706,-3000.0,0.0002164,2]
[327360735,1716017461715,-2381.26,0.00021643,2]
[327360736,1716017461725,-1061.9,0.00021643,2]
[327360737,1716017461736,-2463.57,0.00021643,2]
[327360738,1716017461745,-500.0,0.00021643,2]
[327360739,1716017461755,-3548.83,0.00021643,2]
[327360740,1716017461764,-934.55,0.00021643,2]
[327360741,1716017461775,-1925.6,0.00021643,2]
[327360742,1716017461785,-4540.69,0.00021643,2]
[327360743,1716017461794,-525.88,0.00021643,2]
[327360744,1716017461804,-500.0,0.00021643,2]
[327360745,1716017461813,-3284.2,0.00021643,2]
[327360746,1716017461823,-905.75,0.00021643,2]
[327360747,1716017461832,-4713.77,0.00021643,2]
[327360748,1716017461841,-500.0,0.00021643,2]
[327360749,1716017461851,-239.87094795,0.00021643,2]
[327360750,1716017461860,-512.07,0.00021643,2]
[327360751,1716017461870,-25178.98,0.00021643,2]
[327360752,1716017461879,-1949.54,0.00021643,2]
[327360753,1716017461888,-732.46,0.00021643,2]
[327360754,1716017461898,-3000.0,0.0002165,2]
[327360755,1716017461907,-3199.529332,0.0002166,2]
[327360756,1716017461916,-1000.0,0.00021824,2]
[327360757,1716017461925,-596.46692153,0.000219,10]
[327360758,1716017461937,-160.0,0.00021917,3]
[327360759,1716017461947,-300.88562895,0.00021917,2]
[327360760,1716017461957,-2381.26,0.00021917,2]
[327360761,1716017461966,-1061.9,0.00021917,2]
[327360762,1716017461977,-2463.57,0.00021917,2]
[327360763,1716017461986,-368.49227157,0.00021917,2]
[327360764,1716017461995,-3548.83,0.00021917,2]
[327360765,1716017462005,-934.55,0.00021917,2]
[327360766,1716017462014,-1925.6,0.00021917,2]
[327360767,1716017462023,-4540.69,0.00021917,2]
[327360768,1716017462033,-525.88,0.00021917,2]
[327360769,1716017462042,-500.0,0.00021917,2]
[327360770,1716017462052,-3284.2,0.00021917,2]
[327360771,1716017462061,-905.75,0.00021917,2]
[327360772,1716017462071,-4713.77,0.00021917,2]
[327360773,1716017462081,-346.4989892,0.00021917,2]
[327360774,1716017462090,-512.07,0.00021917,2]
[327360775,1716017462099,-25178.98,0.00021917,2]
[327360776,1716017462108,-1949.54,0.00021917,2]
[327360777,1716017462117,-732.46,0.00021917,2]
[327360778,1716017462127,-166.666666,0.00021918,2]
[327360779,1716017462136,-151.0,0.00021918,2]
[327360780,1716017462145,-151.0,0.00021918,2]
[327360781,1716017462155,-153.352827,0.00021918,2]
[327360782,1716017462165,-10000.0,0.00021918,2]
[327360783,1716017462174,-620.00000021,0.00021957,2]
[327360784,1716017462183,-2000.0,0.00022,2]
[327360785,1716017462193,-182.01210677,0.00022,2]
[327360786,1716017462203,-2347.23138408,0.00022,2]
[327360787,1716017462212,-551.67927549,0.00022,2]
[327360788,1716017462222,-154.7215013,0.00022,14]
[327360789,1716017462232,-534.0,0.00022,4]
[327360790,1716017462241,-2000.0,0.00022,2]
[327360791,1716017462253,-160.0,0.00022049,4]
[327360792,1716017462263,-160.0,0.0002218,5]
[327360793,1716017462272,-1000.0,0.00022189,2]
[327360794,1716017462281,-2381.26,0.00022191,2]
[327360795,1716017462290,-1061.9,0.00022191,2]
[327360796,1716017462300,-2463.57,0.00022191,2]
[327360797,1716017462309,-3548.83,0.00022191,2]
[327360798,1716017462318,-934.55,0.00022191,2]
[327360799,1716017462328,-1925.6,0.00022191,2]
[327360800,1716017462338,-4540.69,0.00022191,2]
[327360801,1716017462348,-525.88,0.00022191,2]
[327360802,1716017462357,-500.0,0.00022191,2]
[327360803,1716017462367,-3284.2,0.00022191,2]
[327360804,1716017462376,-905.75,0.00022191,2]
[327360805,1716017462386,-4713.77,0.00022191,2]
[327360806,1716017462396,-512.07,0.00022191,2]
[327360807,1716017462405,-25178.98,0.00022191,2]
[327360808,1716017462414,-1949.54,0.00022191,2]
[327360809,1716017462424,-732.46,0.00022191,2]
[327360810,1716017462433,-160.0,0.00022312,6]
[327360811,1716017462443,-417.0761086,0.00022356,2]
[327360812,1716017462452,-153.0,0.00022409,2]
[327360813,1716017462461,-320.8004914,0.00022409,2]
[327360814,1716017462472,-154.486633,0.00022409,2]
[327360815,1716017462481,-166.666666,0.00022431,2]
[327360816,1716017462490,-160.0,0.00022444,7]
[327360817,1716017462499,-2381.26,0.00022465,2]
[327360818,1716017462509,-1061.9,0.00022465,2]
[327360819,1716017462518,-2463.57,0.00022465,2]
[327360820,1716017462528,-3548.83,0.00022465,2]
[327360821,1716017462536,-934.55,0.00022465,2]
[327360822,1716017462546,-1925.6,0.00022465,2]
[327360823,1716017462555,-4540.69,0.00022465,2]
[327360824,1716017462564,-525.88,0.00022465,2]
[327360825,1716017462574,-379.46923837,0.00022465,2]
[327360826,1716017462584,-3284.2,0.00022465,2]
[327360827,1716017462594,-905.75,0.00022465,2]
[327360828,1716017462603,-4713.77,0.00022465,2]
[327360829,1716017462612,-512.07,0.00022465,2]
[327360830,1716017462621,-25178.98,0.00022465,2]
[327360831,1716017462631,-1949.54,0.00022465,2]
[327360832,1716017462640,-732.46,0.00022465,2]
[327360833,1716017462649,-126262.81767043,0.00022484,2]
[327360834,1716017462659,-1007.471421,0.000225,2]
[327360835,1716017462668,-150.0,0.00022537,2]
[327360836,1716017462677,-160.0,0.00022576,8]
[327360837,1716017462687,-377.066,0.00022592,2]
[327360838,1716017462700,-300.0,0.00022666,2]
[327360839,1716017462709,-1000.0,0.00022688,2]
[327360840,1716017462718,-300.0,0.0002269,2]
[327360841,1716017462729,-300.0,0.00022706,2]
[327360842,1716017462739,-160.0,0.00022707,9]
[327360843,1716017462748,-2381.44879924,0.00022739,2]
[327360844,1716017462759,-1062.03945617,0.00022739,2]
[327360845,1716017462768,-2463.78682015,0.00022739,2]
[327360846,1716017462778,-3548.87492347,0.00022739,2]
[327360847,1716017462787,-934.71261676,0.00022739,2]
[327360848,1716017462796,-1925.65152404,0.00022739,2]
[327360849,1716017462805,-4540.81560898,0.00022739,2]
[327360850,1716017462814,-526.07436977,0.00022739,2]
[327360851,1716017462824,-3284.43959151,0.00022739,2]
[327360852,1716017462833,-905.855,0.00022739,2]
[327360853,1716017462842,-4713.83642808,0.00022739,2]
[327360854,1716017462851,-512.20085054,0.00022739,2]
[327360855,1716017462861,-25179.14284925,0.00022739,2]
[327360856,1716017462870,-1949.69575429,0.00022739,2]
[327360857,1716017462879,-732.6143447,0.00022739,2]
[327360858,1716017462888,-1000.0,0.00022747,2]
[327360859,1716017462898,-1000.0,0.00022797,2]
[327360860,1716017462907,-10635.56596043,0.000228,2]
[327360861,1716017462917,-300.0,0.00022826,2]
[327360862,1716017462926,-160.0,0.00022839,10]
[327360863,1716017462935,-1000.0,0.00022839,2]
[327360864,1716017462944,-295.95310917,0.00022853,2]
[327360865,1716017462953,-1000.0,0.00022891,2]
[327360866,1716017462963,-1000.0,0.0002292,2]
[327360867,1716017462972,-166.666666,0.00022944,2]
[327360868,1716017462982,-160.0,0.00022971,11]
[327360869,1716017462992,-180.53352279,0.00023,2]
[327360870,1716017463001,-2000.0,0.00023,2]
[327360871,1716017463010,-2000.0,0.00023,2]
[327360872,1716017463019,-50082.072,0.00023,2]
[327360873,1716017463029,-568.0,0.00023,2]
[327360874,1716017463038,-1000.0,0.00023,2]
[327360875,1716017463047,-923.7082,0.00023,2]
[327360876,1716017463057,-923.7082,0.00023,2]
[327360877,1716017463066,-620.00000001,0.00023055,2]
[327360878,1716017463075,-160.0,0.00023102,12]
[327360879,1716017463085,-160.0,0.00023234,13]
[327360880,1716017463177,-568.0,0.00023288,2]
[327360881,1716017463198,-160.0,0.00023366,14]
[327360882,1716017463207,-166.666666,0.00023456,2]
[327360883,1716017463217,-150.0,0.00023469,2]
[327360884,1716017463227,-160.0,0.00023497,15]
[327360885,1716017463237,-568.0,0.00023562,2]
[327360886,1716017463247,-1000.0,0.00023615,2]
[327360887,1716017463256,-160.0,0.00023629,16]
[327360888,1716017463266,-160.0,0.00023761,17]
[327360889,1716017463275,-568.0,0.00023836,2]
[327360890,1716017463284,-160.0,0.00023893,18]
[327360891,1716017463294,-5202.24016042,0.000239,2]
[327360892,1716017463302,-166.666666,0.00023969,2]
[327360893,1716017463311,-442.10358069,0.00024,2]
[327360894,1716017463321,-213.38957238,0.00024,2]
[327360895,1716017463330,-504.0,0.00024,2]
[327360896,1716017463339,-52341.92432259,0.00024,2]
[327360897,1716017463348,-1000.0,0.00024,24]
[327360898,1716017463358,-160.0,0.00024024,19]
[327360899,1716017463367,-150.5,0.0002408,35]
[327360900,1716017463376,-150.5,0.0002408,35]
[327360901,1716017463386,-300.0,0.0002408,35]
[327360902,1716017463394,-151.0,0.00024081,2]
[327360903,1716017463404,-150.5,0.0002409,35]
[327360904,1716017463413,-150.5,0.0002409,35]
[327360905,1716017463422,-300.0,0.0002409,35]
[327360906,1716017463431,-150.5,0.000241,35]
[327360907,1716017463441,-150.5,0.000241,35]
[327360908,1716017463450,-300.0,0.000241,35]
[327360909,1716017463459,-568.0,0.0002411,2]
[327360910,1716017463468,-1432.0,0.0002411,35]
[327360911,1716017463480,-1432.0,0.0002412,35]
[327360912,1716017463489,-1432.0,0.0002413,35]
[327360913,1716017463497,-161.0,0.0002414,35]
[327360914,1716017463506,-161.0,0.0002415,35]
[327360915,1716017463515,-160.0,0.00024156,20]
[327360916,1716017463524,-268.01244415,0.00024156,5]
[327360917,1716017463534,-161.0,0.0002416,35]
[327360918,1716017463543,-568.0,0.00024164,2]
[327360919,1716017463553,-620.0,0.00024208,2]
[327360920,1716017463562,-568.0,0.00024384,2]
[327360921,1716017463571,-750.0,0.00024384,2]
[327360922,1716017463580,-1000.0,0.00024471,2]
[327360923,1716017463589,-166.666666,0.00024482,2]
[327360924,1716017463599,-1132.40394904,0.00024502,2]
[327360925,1716017463608,-1784.32917088,0.00024513,2]
[327360926,1716017463617,-155.86609511,0.00024516,2]
[327360927,1716017463626,-155.86609511,0.00024557,2]
[327360928,1716017463635,-155.86609511,0.00024563,2]
[327360929,1716017463644,-1784.32917088,0.00024568,2]
[327360930,1716017463654,-151.33163558,0.0002457,2]
[327360931,1716017463663,-151.33163558,0.00024635,2]
[327360932,1716017463672,-155.86609511,0.00024641,2]
[327360933,1716017463681,-500.0,0.00024658,2]
[327360934,1716017463691,-200.0,0.00024658,15]
[327360935,1716017463706,-380.0,0.00024658,2]
[327360936,1716017463716,-154.35056966,0.00024673,2]
[327360937,1716017463726,-158.64253177,0.00024676,2]
[327360938,1716017463735,-200.30832996,0.00024695,2]
[327360939,1716017463744,-155.86609511,0.00024705,2]
[327360940,1716017463754,-1784.32917088,0.00024763,2]
[327360941,1716017463764,-1132.40394904,0.00024768,2]
[327360942,1716017463776,-1784.32917088,0.00024782,2]
[327360943,1716017463786,-1132.40394904,0.00024788,2]
[327360944,1716017463796,-1784.32917088,0.0002479,2]
[327360945,1716017463805,-1132.40394904,0.00024815,2]
[327360946,1716017463814,-155.86609511,0.00024826,2]
[327360947,1716017463824,-1671.40986891,0.00024856,2]
[327360948,1716017463833,-1132.40394904,0.00024856,2]
[327360949,1716017463842,-151.33163558,0.00024902,2]
[327360950,1716017463852,-1132.40394904,0.00024926,2]
[327360951,1716017463861,-155.86609511,0.00024952,2]
[327360952,1716017463871,-1132.40394904,0.00024961,2]
[327360953,1716017463880,-1132.40394904,0.00024964,2]
[327360954,1716017463889,-1132.40394904,0.00024982,2]
[327360955,1716017463899,-32698.36712224,0.00025,2]
[327360956,1716017463908,-12820.95320049,0.00025,10]
[327360957,1716017463917,-300.0,0.00025,2]
[327360958,1716017463927,-300.0,0.00025,2]
[327360959,1716017463936,-578.34470116,0.00025,2]
[327360960,1716017463945,-1384.20447633,0.00025,2]
[327360961,1716017463954,-160.0,0.00025,2]
[327360962,1716017463963,-300.0,0.00025,2]
[327360963,1716017463972,-300.0,0.00025,2]
[327360964,1716017463981,-300.0,0.00025,2]
[327360965,1716017463990,-300.0,0.00025,2]
[327360966,1716017464000,-300.0,0.00025,2]
[327360967,1716017464010,-300.0,0.00025,2]
[327360968,1716017464020,-300.0,0.00025,2]
[327360969,1716017464032,-300.0,0.00025,2]
[327360970,1716017464043,-300.0,0.00025,2]
[327360971,1716017464053,-300.0,0.00025,2]
[327360972,1716017464064,-300.0,0.00025,2]
[327360973,1716017464075,-300.0,0.00025,2]
[327360974,1716017464086,-281.0,0.00025,2]
[327360975,1716017464097,-2000.0,0.00025,2]
[327360976,1716017464106,-433.0,0.00025,2]
[327360977,1716017464116,-2000.0,0.00025,2]
[327360978,1716017464126,-2000.0,0.00025,2]
[327360979,1716017464135,-2000.0,0.00025,2]
[327360980,1716017464144,-2000.0,0.00025,2]
[327360981,1716017464154,-2000.0,0.00025,2]
[327360982,1716017464163,-2000.0,0.00025,2]
[327360983,1716017464173,-1000.0,0.00025,2]
[327360984,1716017464182,-1000.0,0.00025,2]
[327360985,1716017464192,-2000.0,0.00025,2]
[327360986,1716017464201,-2000.0,0.00025,2]
[327360987,1716017464211,-2000.0,0.00025,2]
[327360988,1716017464220,-1000.0,0.00025,2]
[327360989,1716017464230,-1000.0,0.00025,2]
[327360990,1716017464239,-1000.0,0.00025,2]
[327360991,1716017464248,-415.4,0.00025,2]
[327360992,1716017464257,-287.22218778,0.00025,2]
[327360993,1716017464267,-604.79521153,0.00025,2]
[327360994,1716017464276,-154.818,0.00025,2]
[327360995,1716017464285,-123718.75767469,0.00025,7]
[327360996,1716017464294,-7633.06711658,0.00025,2]
[327360997,1716017464303,-154.70605849,0.00025,2]
[327360998,1716017464312,-154.70605849,0.00025,2]
[327360999,1716017464321,-151.33163558,0.00025036,2]
[327361000,1716017464330,-1784.32917088,0.0002506,2]
[327361001,1716017464340,-1784.32917088,0.00025075,2]
[327361002,1716017464349,-155.86609511,0.00025081,2]
[327361003,1716017464358,-155.86609511,0.00025099,2]
[327361004,1716017464367,-153.42480434,0.00025102,2]
[327361005,1716017464376,-155.86609511,0.00025108,2]
[327361006,1716017464385,-153.42480434,0.00025121,2]
[327361007,1716017464395,-153.42480434,0.00025126,2]
[327361008,1716017464404,-1784.32917088,0.0002513,2]
[327361009,1716017464413,-568.0,0.00025131,2]
[327361010,1716017464422,-1132.40394904,0.00025164,2]
[327361011,1716017464431,-155.86609511,0.00025164,2]
[327361012,1716017464440,-1784.32917088,0.0002517,2]
[327361013,1716017464450,-154.35056966,0.00025185,2]
[327361014,1716017464458,-1132.40394904,0.00025228,2]
[327361015,1716017464467,-153.42480434,0.00025228,2]
[327361016,1716017464477,-155.86609511,0.00025232,2]
[327361017,1716017464487,-151.33163558,0.0002524,2]
[327361018,1716017464496,-200.30832996,0.00025253,2]
[327361019,1716017464506,-1784.32917088,0.00025293,2]
[327361020,1716017464515,-153.42480434,0.00025313,2]
[327361021,1716017464524,-155.86609511,0.00025346,2]
[327361022,1716017464533,-155.86609511,0.00025352,2]
[327361023,1716017464542,-1784.32917088,0.00025355,2]
[327361024,1716017464551,-151.33163558,0.00025361,2]
[327361025,1716017464560,-573.0,0.00025373,2]
[327361026,1716017464569,-155.86609511,0.00025379,2]
[327361027,1716017464578,-1784.32917088,0.00025391,2]
[327361028,1716017464587,-1132.40394904,0.00025412,2]
[327361029,1716017464597,-1132.40394904,0.00025456,2]
[327361030,1716017464606,-229.96,0.00025461,2]
[327361031,1716017464616,-309.4492735,0.00025479,2]
[327361032,1716017464625,-1132.40394904,0.00025501,2]
[327361033,1716017464634,-1784.32917088,0.00025535,2]
[327361034,1716017464643,-150.0,0.00025537,2]
[327361035,1716017464653,-1132.40394904,0.00025545,2]
[327361036,1716017464662,-1784.32917088,0.00025553,2]
[327361037,1716017464672,-1132.40394904,0.00025563,2]
[327361038,1716017464681,-151.33163558,0.00025572,2]
[327361039,1716017464691,-1784.32917088,0.00025572,2]
[327361040,1716017464705,-154.35056966,0.00025573,2]
[327361041,1716017464714,-1132.40394904,0.0002558,2]
[327361042,1716017464724,-1132.40394904,0.00025588,2]
[327361043,1716017464733,-151.33163558,0.0002561,2]
[327361044,1716017464742,-154.35056966,0.00025644,2]
[327361045,1716017464751,-155.86609511,0.00025646,2]
[327361046,1716017464760,-1132.40394904,0.00025662,2]
[327361047,1716017464769,-153.42480434,0.00025667,2]
[327361048,1716017464781,-1784.32917088,0.00025682,2]
[327361049,1716017464790,-151.33163558,0.00025683,2]
[327361050,1716017464799,-1784.32917088,0.00025721,2]
[327361051,1716017464809,-155.86609511,0.00025741,2]
[327361052,1716017464818,-153.42480434,0.00025747,2]
[327361053,1716017464827,-155.86609511,0.00025763,2]
[327361054,1716017464836,-210.442391,0.00025786,3]
[327361055,1716017464845,-1132.40394904,0.00025797,2]
[327361056,1716017464853,-151.33163558,0.00025798,2]
[327361057,1716017464862,-155.86609511,0.00025799,2]
[327361058,1716017464871,-1132.40394904,0.00025802,2]
[327361059,1716017464880,-1132.40394904,0.00025805,2]
[327361060,1716017464889,-155.86609511,0.00025819,2]
[327361061,1716017464898,-1784.32917088,0.00025833,2]
[327361062,1716017464907,-155.86609525,0.00025847,2]
[327361063,1716017464916,-1784.32917088,0.00025879,2]
[327361064,1716017464924,-173.54435051,0.00025902,2]
[327361065,1716017464934,-11150.20328815,0.00026,2]
[327361066,1716017464943,-2500.0,0.00026,2]
[327361067,1716017464952,-1784.32917088,0.00026019,2]
[327361068,1716017464961,-1000.0,0.00026027,2]
[327361069,1716017464969,-1000.0,0.00026027,2]
[327361070,1716017464979,-1000.0,0.00026027,2]
[327361071,1716017464987,-1000.0,0.00026027,2]
[327361072,1716017464997,-712.63294807,0.00026027,2]
[327361073,1716017465006,-1103.77,0.00026027,2]
[327361074,1716017465015,-1132.40394904,0.00026094,2]
[327361075,1716017465025,-568.0,0.00026098,2]
[327361076,1716017465033,-568.0,0.00026098,2]
[327361077,1716017465042,-173.54435051,0.00026124,2]
[327361078,1716017465051,-1784.32917088,0.00026153,2]
[327361079,1716017465060,-153.42480434,0.00026166,2]
[327361080,1716017465069,-151.33163558,0.0002617,2]
[327361081,1716017465078,-1132.40394904,0.00026182,2]
[327361082,1716017465087,-154.35056966,0.00026189,2]